fUST/lending_fUST_20240414
["ID","MTS","AMOUNT","RATE_DAILY","PERIOD"]
[322595190,1713099032724,-150.83408251,0.00037002,2]
[322595191,1713099032733,-67.01968932,0.00037002,2]
[322595313,1713099039930,-183.19595347,0.00037002,2]
[322595314,1713099039941,-154.92253873,0.00037238,4]
[322595315,1713099039951,-2500.0,0.000375,14]
[322595316,1713099039962,-2500.0,0.0003751,14]
[322595318,1713099039972,-2076.40723313,0.00037518,2]
[322595320,1713099039984,-2500.0,0.0003752,14]
[322595323,1713099039995,-2500.0,0.0003753,14]
[322595325,1713099040013,-2500.0,0.0003754,14]
[322595328,1713099040024,-2500.0,0.0003755,14]
[322595332,1713099040034,-2500.0,0.0003756,14]
[322595334,1713099040044,-2500.0,0.0003757,14]
[322595337,1713099040054,-2500.0,0.0003758,14]
[322595340,1713099040064,-2500.0,0.0003759,14]
[322595342,1713099040074,-2500.0,0.000376,14]
[322595345,1713099040084,-2500.0,0.0003761,14]
[322595348,1713099040095,-155.26935262,0.00037618,30]
[322595351,1713099040105,-3898.216781,0.00037618,4]
[322595354,1713099040120,-2500.0,0.0003762,14]
[322595356,1713099040129,-301.66816502,0.00037624,4]
[322595358,1713099040139,-2500.0,0.0003763,14]
[322595360,1713099040148,-2500.0,0.0003764,14]
[322595362,1713099040157,-2500.0,0.0003765,15]
[322595364,1713099040167,-3221.09083597,0.0003765,2]
[322595366,1713099040177,-2500.0,0.0003766,15]
[322595368,1713099040187,-2500.0,0.0003767,15]
[322595370,1713099040198,-500.0,0.00037679,15]
[322595372,1713099040209,-380.0,0.00037679,15]
[322595374,1713099040219,-2500.0,0.0003768,15]
[322595376,1713099040230,-2500.0,0.0003769,15]
[322595378,1713099040241,-2500.0,0.000377,15]
[322595380,1713099040251,-2500.0,0.0003771,15]
[322595382,1713099040261,-3221.09083597,0.00037713,2]
[322595383,1713099040271,-2500.0,0.0003772,15]
[322595384,1713099040282,-2500.0,0.0003773,15]
[322595385,1713099040291,-2500.0,0.0003774,15]
[322595387,1713099040302,-2500.0,0.0003775,15]
[322595389,1713099040312,-2500.0,0.0003776,15]
[322595390,1713099040321,-2500.0,0.0003777,15]
[322595391,1713099040331,-3221.09083597,0.00037775,2]
[322595392,1713099040341,-2500.0,0.0003778,15]
[322595393,1713099040351,-2722.419392,0.0003779,15]
[322595394,1713099040366,-3221.09083597,0.00037838,2]
[322595395,1713099040376,-3221.09083597,0.000379,2]
[322595396,1713099040386,-4241.40183063,0.000379,2]
[322595397,1713099040396,-1071.68727552,0.0003796,4]
[322595398,1713099040406,-3057.14,0.00037997,2]
[322595399,1713099040417,-3057.14,0.00037997,2]
[322595400,1713099040427,-3057.14,0.00037997,2]
[322595401,1713099040438,-3057.14,0.00037997,2]
[322595402,1713099040448,-3057.14,0.00037997,2]
[322595403,1713099040458,-3057.14,0.00037997,2]
[322595404,1713099040468,-3057.14,0.00037997,2]
[322595405,1713099040477,-3057.14,0.00037997,2]
[322595406,1713099040487,-3057.14,0.00037997,2]
[322595407,1713099040496,-3057.14,0.00037997,2]
[322595408,1713099040505,-459.53504343,0.00037997,15]
[322595409,1713099040515,-500.0,0.00037997,15]
[322595410,1713099040524,-365.58401159,0.00037997,15]
[322595411,1713099040534,-256.43642088,0.00037997,15]
[322595412,1713099040543,-500.0,0.00037997,15]
[322595413,1713099040552,-558.12407666,0.00037997,15]
[322595414,1713099040562,-500.0,0.00037997,15]
[322595415,1713099040571,-500.0,0.00037997,15]
[322595416,1713099040581,-500.0,0.00037997,15]
[322595417,1713099040591,-510.99516404,0.00037997,15]
[322595418,1713099040601,-203.84370821,0.00037997,15]
[322595419,1713099040616,-555.32284278,0.00037997,15]
[322595420,1713099040626,-110114.64389051,0.00037998,5]
[322595421,1713099040636,-26694.65986806,0.00037998,4]
[322595422,1713099040645,-447.53064603,0.00037998,4]
[322595423,1713099040655,-273.94278692,0.00037998,4]
[322595424,1713099040664,-2094.57281327,0.00037998,4]
[322595425,1713099040675,-364.10401154,0.00037998,4]
[322595426,1713099040684,-6948.72250311,0.00037998,4]
[322595427,1713099040693,-155.40988289,0.00037998,4]
[322595428,1713099040703,-581.85343006,0.00037998,4]
[322595429,1713099040714,-1494.69948559,0.00037998,4]
[322595430,1713099040724,-155.91923611,0.00037998,4]
[322595431,1713099040733,-282.52694059,0.00037998,4]
[322595432,1713099040742,-546.9416425,0.00037998,4]
[322595433,1713099040752,-362.5371579,0.00037998,4]
[322595434,1713099040761,-155.07443573,0.00037998,4]
[322595435,1713099040770,-1931.90571888,0.00037998,4]
[322595436,1713099040924,-410.77520005,0.00037998,4]
[322595438,1713099040946,-318.7894458,0.00037998,4]
[322595439,1713099040956,-1486.82464434,0.00037998,4]
[322595440,1713099040965,-277.31237042,0.00037998,4]
[322595441,1713099040976,-155.06197432,0.00037998,4]
[322595442,1713099040985,-150.0,0.00037998,2]
[322595444,1713099040995,-1808.15805753,0.00037999,4]
[322595446,1713099041006,-193.19406013,0.00037999,4]
[322595447,1713099041015,-208.63485725,0.00037999,4]
[322595448,1713099041025,-250.0,0.00037999,2]
[322595449,1713099041034,-467.23792428,0.00037999,4]
[322595450,1713099041043,-183.69076121,0.00037999,4]
[322595452,1713099041052,-68270.67839327,0.00037999,4]
[322595453,1713099041061,-270.09998492,0.00037999,4]
[322595455,1713099041071,-155.09150399,0.00037999,4]
[322595456,1713099041080,-158.23007676,0.00037999,4]
[322595457,1713099041089,-160.0,0.00037999,10]
[322595458,1713099041098,-1000.0,0.00038,3]
[322595459,1713099041110,-579183.09972303,0.00038,5]
[322595460,1713099041123,-9524.900006,0.00038,5]
[322595461,1713099041134,-9616.543209,0.00038,5]
[322595490,1713099043597,-5437.83456555,0.00038,5]
[322595491,1713099043658,-64817.64801253,0.00038,5]
[322595518,1713099046512,-2045.57347941,0.00037999,2]
[322595519,1713099046522,-117996.17190284,0.00038,5]
[322595520,1713099046533,-10417.88399699,0.00038,5]
[322595526,1713099234967,3342.41903225,0.0002,2]
[322595527,1713099234991,7738.36179746,0.0002,2]
[322595529,1713099260439,1190.59729293,0.000125,2]
[322595533,1713099486402,466.02802357,0.000125,2]
[322595535,1713099768425,1000.0,0.000265,120]
[322595575,1713100232712,-150.0,0.000244,2]
[322595576,1713100232722,-1893.67749515,0.00024998,2]
[322595671,1713100238611,-1405.09483545,0.00024998,2]
[322595723,1713100239985,-962.61,0.00024998,2]
[322595725,1713100240001,-3591.98052796,0.00024998,2]
[322595726,1713100240012,-1013.5090027,0.00025,2]
[322595728,1713100240024,-300.0,0.00026499,2]
[322595730,1713100240037,-1449.27434012,0.000265,4]
[322595732,1713100240048,-160.517262,0.00027397,2]
[322595733,1713100240063,-154.84515485,0.00029148,2]
[322595734,1713100240074,-420.0,0.00029149,2]
[322595736,1713100240083,-587.0,0.00032064,2]
[322595737,1713100240094,-1000.0,0.00033019,2]
[322595738,1713100240104,-166.666666,0.00033353,2]
[322595740,1713100240113,-221.909567,0.00034216,2]
[322595742,1713100240123,-1818.6583004,0.00034555,10]
[322595744,1713100240135,-440.4516996,0.00034555,10]
[322595745,1713100240145,-171.522234,0.00034954,2]
[322595746,1713100240155,-823.0,0.0003527,2]
[322595747,1713100240164,-385.30778688,0.00035615,4]
[322595749,1713100240174,-627.86397454,0.00035615,4]
[322595750,1713100240184,-817.390996,0.00035616,120]
[322595751,1713100240193,-2516.562381,0.00036,30]
[322595752,1713100240203,-306.47743014,0.00036498,8]
[322595753,1713100240213,-2045.57347941,0.00037,2]
[322595754,1713100240222,-306.47743013,0.0003714,8]
[322595755,1713100240232,-154.92253873,0.00037238,4]
[322595756,1713100240241,-948.95005357,0.000375,14]
[322595757,1713100240253,-1551.04994643,0.000375,14]
[322595758,1713100240263,-2500.0,0.0003751,14]
[322595759,1713100240272,-2500.0,0.0003752,14]
[322595760,1713100240282,-2500.0,0.0003753,14]
[322595761,1713100240291,-508.25523857,0.0003754,14]
[322595762,1713100240303,-1991.74476143,0.0003754,14]
[322595763,1713100240314,-2500.0,0.0003755,14]
[322595764,1713100240322,-2500.0,0.0003756,14]
[322595765,1713100240331,-2500.0,0.0003757,14]
[322595766,1713100240340,-2500.0,0.0003758,14]
[322595767,1713100240350,-2500.0,0.0003759,14]
[322595768,1713100240359,-2500.0,0.000376,14]
[322595769,1713100240369,-2012.18123857,0.0003761,14]
[322595771,1713100240657,-487.81876143,0.0003761,14]
[322595772,1713100240667,-14.16332628,0.0003762,14]
[322595773,1713100240679,-449.8899995,0.0003762,14]
[322595774,1713100240691,-2035.94667422,0.0003762,14]
[322595775,1713100240701,-2500.0,0.0003763,14]
[322595776,1713100240711,-2500.0,0.0003764,14]
[322595777,1713100240720,-3317.819616,0.0003765,15]
[322595778,1713100240730,-306.47743013,0.00037783,8]
[322595779,1713100240740,-237.06998667,0.00037998,4]
[322595780,1713100240749,-299.82752621,0.00037998,4]
[322595781,1713100240759,-186.77324729,0.00037998,2]
[322595782,1713100240769,-601.81614276,0.00037998,4]
[322595783,1713100240779,-250.0,0.00037998,2]
[322595784,1713100240789,-154.86062544,0.00037998,4]
[322595785,1713100240800,-274.24746323,0.00037998,4]
[322595786,1713100240812,-190.82879754,0.00037998,4]
[322595787,1713100240822,-4370.48789877,0.00037998,4]
[322595788,1713100240831,-278.21810736,0.00037998,4]
[322595789,1713100240842,-248.20380488,0.00037999,2]
[322595790,1713100240852,-620.0,0.00037999,15]
[322595791,1713100240863,-1811.99287586,0.00038,30]
[322595792,1713100240873,-339.20733179,0.00038,30]
[322595793,1713100240883,-80850.20983976,0.00038,5]
[322595794,1713100240896,-3030.71822,0.00038,5]
[322595795,1713100240907,-1158.400025,0.00038,5]
[322595796,1713100240925,-4376.91084318,0.00038,5]
[322595797,1713100240935,-187.0,0.00038,2]
[322595798,1713100240952,-150.83408251,0.00038071,2]
[322595799,1713100240961,-416.05715037,0.00038356,2]
[322595800,1713100240973,-203.0300069,0.00038356,2]
[322595801,1713100240983,-406.0600138,0.00038356,2]
[322595802,1713100240995,-406.0600138,0.00038356,2]
[322595803,1713100241004,-306.0,0.00038356,2]
[322595804,1713100241014,-2000.0,0.000384,30]
[322595805,1713100241025,-306.47743013,0.00038425,8]
[322595806,1713100241035,-1790.02749486,0.000386,50]
[322595888,1713100243755,-971.90375154,0.000386,50]
[322595913,1713101283325,13329.59484148,0.00025,5]
[322595914,1713101283358,66199.85801317,0.00025,5]
[322595915,1713101366148,-154.84660976,0.00027397,2]
[322595997,1713101431936,-16.63116724,0.00027397,2]
[322595999,1713101431950,-158.108892,0.00027397,2]
[322596001,1713101431960,-3602.47716789,0.00034051,4]
[322596003,1713101431969,-400.0,0.00034052,2]
[322596005,1713101431982,-24900.0,0.00034054,2]
[322596007,1713101431991,-158.108892,0.00035827,2]
[322596009,1713101432001,-153.2387151,0.00036335,7]
[322596011,1713101432011,-613.043247,0.00036435,120]
[322596013,1713101432020,-264.153788,0.00036435,2]
[322596015,1713101432030,-1000.0,0.00036706,2]
[322596017,1713101432040,-2045.57347941,0.00037,2]
[322596019,1713101432049,-153.23871506,0.00037001,8]
[322596021,1713101432058,-536.0,0.00037457,2]
[322596023,1713101432067,-150.0,0.000375,14]
[322596025,1713101432077,-580.06626667,0.00037592,2]
[322596027,1713101432087,-153.23871506,0.00037666,8]
[322596029,1713101432097,-306.0,0.000377,2]
[322596031,1713101432106,-164.0,0.00038,2]
[322596033,1713101432116,-1047.0,0.00038,2]
[322596035,1713101432125,-153.23871506,0.00038332,8]
[322596036,1713101432135,-7036.57643556,0.000384,7]
[322596038,1713101432145,-2997.35256123,0.00038496,2]
[322596041,1713101432155,-188.43765363,0.00038498,2]
[322596043,1713101432165,-327.72382144,0.00038596,5]
[322596045,1713101432176,-2342.0687536,0.000386,50]
[322596047,1713101432187,-164.0,0.0003863,14]
[322596048,1713101432197,-406.0600138,0.0003863,2]
[322596051,1713101432207,-31947.4583368,0.0003866,30]
[322596088,1713101437877,-10551.54318809,0.0003405,2]
[322596089,1713101437886,-7084.9164632,0.0003866,30]
[322596091,1713101437895,-206.68240278,0.000388,2]
[322596093,1713101437904,-3817.26164754,0.00038898,2]
[322596095,1713101437913,-700.26525994,0.000389,2]
[322596097,1713101437923,-239.19603286,0.00038997,15]
[322596098,1713101437932,-616.59685284,0.00038997,15]
[322596100,1713101437941,-156.67886211,0.00038997,15]
[322596102,1713101437951,-218.99792744,0.00038997,15]
[322596103,1713101437960,-361.15311247,0.00038997,15]
[322596105,1713101437969,-160.64202926,0.00038997,30]
[322596107,1713101437980,-55057.32194526,0.00038998,5]
[322596109,1713101437990,-153.23871506,0.00038998,9]
[322596110,1713101437999,-150.0,0.00038998,2]
[322596112,1713101438009,-552228.56496604,0.00038998,2]
[322596114,1713101438019,-1000.0,0.00038998,3]
[322596115,1713101438028,-6899.91180912,0.00038999,3]
[322596117,1713101438037,-350.44,0.00038999,2]
[322596118,1713101438046,-350.44,0.00038999,2]
[322596119,1713101438056,-350.44,0.00038999,2]
[322596120,1713101438065,-350.44,0.00038999,2]
[322596121,1713101438074,-350.44,0.00038999,2]
[322596122,1713101438084,-350.44,0.00038999,2]
[322596123,1713101438094,-350.44,0.00038999,2]
[322596124,1713101438102,-350.44,0.00038999,2]
[322596125,1713101438112,-350.44,0.00038999,2]
[322596126,1713101438121,-350.44,0.00038999,2]
[322596127,1713101438130,-61830.70664542,0.00039,14]
[322596146,1713101439828,-9717.33935,0.00039,14]
[322596147,1713101439983,-32385.15612119,0.00039,14]
[322596148,1713101439996,-9078.73496,0.00039,14]
[322596149,1713101440008,-6016.00204302,0.00039,14]
[322596187,1713101442993,-1061.68195144,0.00038999,2]
[322596188,1713101443003,-776.81804856,0.00039,14]
[322596279,1713102631982,-161.058589,0.00027397,2]
[322596280,1713102631992,-88.941411,0.00027397,2]
[322596281,1713102632039,-71.575851,0.00027397,2]
[322596282,1713102632049,-191.39948593,0.00031198,4]
[322596283,1713102632059,-221.2975828,0.0003604,2]
[322596284,1713102632069,-400.0,0.00036513,2]
[322596285,1713102632079,-348.0,0.00036513,2]
[322596286,1713102632088,-10551.54318809,0.00036514,2]
[322596287,1713102632098,-1467.8285652,0.00036515,2]
[322596288,1713102632107,-188.159471,0.00036647,2]
[322596289,1713102632121,-329.0,0.00036818,2]
[322596290,1713102632130,-8729.590242,0.00036818,2]
[322596291,1713102632140,-630.460517,0.00036859,120]
[322596292,1713102632150,-150.0,0.000369,2]
[322596293,1713102632159,-435.0812361,0.00036923,4]
[322596294,1713102632169,-1000.0,0.00037028,2]
[322596295,1713102632179,-287.78611353,0.00037048,4]
[322596296,1713102632189,-150.84915085,0.00037649,2]
[322596297,1713102632199,-250.24063936,0.00037649,2]
[322596298,1713102632209,-164.0,0.00038,2]
[322596300,1713102632218,-301.6983017,0.00038282,4]
[322596302,1713102632228,-1331.1164,0.00038581,30]
[322596303,1713102632237,-164.0,0.0003863,14]
[322596305,1713102632247,-209.92,0.00038896,2]
[322596307,1713102632258,-5000.0,0.000389,2]
[322596309,1713102632268,-603.3966034,0.00038925,7]
[322596311,1713102632277,-154.84515485,0.00038998,4]
[322596312,1713102632287,-3593.03,0.00038999,10]
[322596314,1713102632296,-3593.03,0.00038999,10]
[322596316,1713102632306,-3593.03,0.00038999,10]
[322596318,1713102632316,-10592.25115268,0.00039,14]
[322596471,1713102645989,-155.45069357,0.00038609,3]
[322596472,1713102645999,-308.17554915,0.00038999,4]
[322596486,1713102860210,15026.29848348,0.0002,2]
[322596487,1713102860428,3973.70151652,0.000125,2]
[322596488,1713102860460,1420.70178084,0.000125,2]
[322596489,1713102870459,792.93811988,0.000176,2]
[322596490,1713102875504,272.76484939,0.0001,2]
[322596491,1713102880592,7359.38575588,0.00018,2]
[322596492,1713102880980,8904.20949401,0.00021,2]
[322596493,1713102885270,154.82968734,0.000125,2]
[322596494,1713102885318,154.82968734,0.000125,2]
[322596495,1713102887490,220.66364515,0.000125,2]
[322596496,1713102888889,691.63145155,0.000125,2]
[322596497,1713102892477,385.30778688,0.000125,2]
[322596498,1713102899333,157.48623967,0.000125,2]
[322596499,1713102901340,156.04371073,0.000125,2]
[322596500,1713102902918,691.63145155,0.000125,2]
[322596501,1713102903488,220.66364515,0.000125,2]
[322596502,1713102908440,385.30778688,0.000125,2]
[322596503,1713102924944,691.63145155,0.000125,2]
[322596504,1713102926417,364.11548834,0.000125,2]
[322596505,1713102940121,220.66364515,0.000125,2]
[322596506,1713102947008,691.63145155,0.000125,2]
[322596507,1713102955312,154.82968734,0.000125,2]
[322596508,1713102964910,338.90796002,0.000125,2]
[322596509,1713102975311,159.10744167,0.000125,2]
[322596510,1713102976135,224.69988462,0.000125,2]
[322596511,1713102978155,203.62622456,0.000125,2]
[322596513,1713103197790,13823.12866723,0.000125,2]
[322596514,1713103213979,154.84515485,0.00019,2]
[322596515,1713103215778,1090.73352145,0.000125,2]
[322596516,1713103237952,254.61111614,0.00019,2]
[322596517,1713103295075,691.63145155,0.00019,2]
[322596518,1713103308955,316.87625015,0.00019,2]
[322596520,1713103313655,284.81223636,0.00019,2]
[322596521,1713103333566,213.46908957,0.00019,2]
[322596522,1713103372269,847.80237586,0.00019,2]
[322596523,1713103499021,6284.26149299,0.00026,7]
[322596524,1713103572518,210.60189048,0.000189,2]
[322596526,1713103751049,453.38643555,0.000189,2]
[322596527,1713103801769,1561.76,0.00025,10]
[322596611,1713103838218,-887.82162217,0.00020952,2]
[322596612,1713103838227,-241.01674728,0.00020953,2]
[322596614,1713103838236,-2078.76163055,0.00020953,2]
[322596619,1713103838276,-860.39520541,0.00020953,2]
[322596621,1713103838285,-563.47446363,0.00020954,2]
[322596624,1713103838294,-154.82968734,0.00020955,2]
[322596625,1713103838304,-326.777732,0.00020955,2]
[322596627,1713103838313,-1495.01395474,0.00020955,2]
[322596629,1713103838322,-300.0,0.00020958,2]
[322596631,1713103838331,-300.0,0.00020958,2]
[322596633,1713103838341,-1813.39304845,0.00020995,2]
[322596634,1713103838350,-1079.84089177,0.00021,2]
[322596636,1713103838506,-252.0,0.00022799,2]
[322596637,1713103838529,-420.0,0.00023054,2]
[322596638,1713103838538,-210.60189048,0.000239,2]
[322596639,1713103838548,-587.0,0.00025359,2]
[322596640,1713103838558,-218.7941301,0.00027397,2]
[322596641,1713103838567,-205.15974098,0.000274,2]
[322596642,1713103838576,-590.0,0.00027895,2]
[322596643,1713103838586,-210.60189048,0.000289,2]
[322596644,1713103838595,-166.666666,0.00029329,2]
[322596645,1713103838604,-154.82968734,0.0003,4]
[322596646,1713103838613,-188.159471,0.00030306,2]
[322596647,1713103838622,-1000.0,0.00030629,2]
[322596648,1713103838631,-465.26500893,0.00035191,4]
[322596649,1713103838641,-150.81901718,0.00035192,2]
[322596651,1713103838650,-718.679438,0.00035616,120]
[322596653,1713103838659,-301.63803436,0.00035784,4]
[322596655,1713103838668,-603.27606872,0.00036385,7]
[322596657,1713103838677,-166.79376748,0.00036997,4]
[322596659,1713103838687,-961.725891,0.00037048,4]
[322596661,1713103838696,-154.90705577,0.00037048,4]
[322596663,1713103838705,-1206.55213744,0.00037306,30]
[322596665,1713103838714,-165.0,0.00038,2]
[322596667,1713103838723,-156.23750948,0.00038609,3]
[322596669,1713103838732,-153.23871506,0.000388,9]
[322596670,1713103838741,-223.385,0.00038896,2]
[322596671,1713103838750,-800.0,0.000389,7]
[322596672,1713103838759,-800.0,0.000389,4]
[322596673,1713103838769,-800.0,0.000389,14]
[322596674,1713103838779,-800.0,0.000389,5]
[322596675,1713103838789,-800.0,0.000389,2]
[322596676,1713103838803,-918.0,0.000389,2]
[322596677,1713103838812,-9751.30276195,0.000389,2]
[322596678,1713103838821,-2000.0,0.000389,2]
[322596679,1713103838830,-189.27277465,0.00038998,15]
[322596680,1713103838840,-249.16241964,0.00038998,4]
[322596681,1713103838851,-3519.00317763,0.00038998,4]
[322596682,1713103838861,-484.27597572,0.00038998,4]
[322596683,1713103838870,-155.01758801,0.00038998,4]
[322596684,1713103838880,-1964.94666504,0.00038998,4]
[322596685,1713103838889,-155.3600405,0.00038998,4]
[322596686,1713103838899,-155.44912059,0.00038998,4]
[322596687,1713103838908,-1003.19022969,0.00038998,4]
[322596688,1713103838917,-211.40870572,0.00038998,4]
[322596689,1713103838927,-155.02984959,0.00038998,4]
[322596690,1713103838938,-249.43308611,0.00038998,4]
[322596691,1713103838948,-500.0,0.00038998,2]
[322596692,1713103838957,-155.73142258,0.00038998,4]
[322596693,1713103838967,-309.16982139,0.00038998,7]
[322596694,1713103838977,-154.82968734,0.00038998,4]
[322596695,1713103838987,-3558.76,0.00038998,10]
[322596696,1713103838996,-46635.60057071,0.00038999,3]
[322596732,1713103842386,-1192.94662376,0.00038999,3]
[322596733,1713103842396,-819.98513001,0.00038999,2]
[322596734,1713103842407,-418.24619404,0.00038999,2]
[322596735,1713103842416,-3558.76,0.00038999,10]
[322596736,1713103842425,-3558.76,0.00038999,10]
[322596737,1713103842435,-3558.76,0.00038999,10]
[322596738,1713103842444,-575.63309396,0.00039,5]
[322596739,1713103842465,-199.3289381,0.00039,5]
[322596740,1713103842477,-2107.78628771,0.00039,5]
[322596827,1713103843469,-24645.91265286,0.00039,5]
[322596828,1713103843479,-12179.71405424,0.00039,2]
[322596829,1713103843489,-403.0,0.00039,2]
[322596830,1713103843498,-1000.0,0.00039,2]
[322596831,1713103843507,-96928.35264811,0.00039,14]
[322596832,1713103843517,-1000.0,0.00039,3]
[322596833,1713103843529,-168.790633,0.00039,2]
[322596834,1713103843539,-509.24,0.00039,120]
[322596835,1713103843548,-543.29,0.00039,120]
[322596836,1713103843558,-3558.76,0.00039129,10]
[322596837,1713103843567,-3558.76,0.00039129,10]
[322596838,1713103843577,-500.0,0.0003913,120]
[322596839,1713103843587,-500.0,0.0003913,120]
[322596840,1713103843596,-500.0,0.0003913,120]
[322596841,1713103843607,-500.0,0.0003913,120]
[322596842,1713103843616,-500.0,0.0003913,120]
[322596844,1713103843626,-500.0,0.0003913,120]
[322596845,1713103843635,-500.0,0.0003913,120]
[322596846,1713103843644,-500.0,0.0003913,120]
[322596847,1713103843653,-500.0,0.0003913,120]
[322596848,1713103843663,-418.95,0.0003913,120]
[322596849,1713103843672,-500.0,0.0003913,120]
[322596850,1713103843681,-500.0,0.0003913,120]
[322596851,1713103843691,-500.0,0.0003913,120]
[322596852,1713103843701,-500.0,0.0003913,120]
[322596853,1713103843710,-500.0,0.0003913,120]
[322596854,1713103843720,-500.0,0.0003913,120]
[322596855,1713103843729,-500.0,0.0003913,120]
[322596856,1713103843739,-500.0,0.0003913,120]
[322596857,1713103843748,-500.0,0.0003913,120]
[322596858,1713103843757,-500.0,0.0003913,120]
[322596859,1713103843769,-500.0,0.0003913,120]
[322596860,1713103843779,-500.0,0.0003913,120]
[322596861,1713103843788,-500.0,0.0003913,120]
[322596862,1713103843797,-500.0,0.0003913,120]
[322596863,1713103843806,-500.0,0.0003913,120]
[322596864,1713103843815,-500.0,0.0003913,120]
[322596865,1713103843823,-500.0,0.0003913,120]
[322596866,1713103843833,-500.0,0.0003913,120]
[322596867,1713103843842,-634.01,0.0003913,120]
[322596868,1713103843851,-500.0,0.0003913,120]
[322596869,1713103843860,-500.0,0.0003913,120]
[322596870,1713103843870,-500.0,0.0003913,120]
[322596871,1713103843879,-500.0,0.0003913,120]
[322596872,1713103843888,-500.0,0.0003913,120]
[322596873,1713103843898,-500.0,0.0003913,120]
[322596874,1713103843907,-500.0,0.0003913,120]
[322596875,1713103843916,-500.0,0.0003913,120]
[322596876,1713103843925,-500.0,0.0003913,120]
[322596877,1713103843934,-500.0,0.0003913,120]
[322596878,1713103843943,-500.0,0.0003913,120]
[322596879,1713103843952,-500.0,0.0003913,120]
[322596880,1713103843961,-500.0,0.0003913,120]
[322596881,1713103843970,-500.0,0.0003913,120]
[322596882,1713103843979,-500.0,0.0003913,120]
[322596883,1713103843988,-500.0,0.0003913,120]
[322596884,1713103843998,-154.4,0.0003913,120]
[322596885,1713103844007,-586.0,0.000394,2]
[322596886,1713103844017,-228.1866012,0.00039457,2]
[322596887,1713103844028,-203.0300069,0.00039457,2]
[322596888,1713103844037,-154.77990534,0.00039597,15]
[322596889,1713103844046,-264.25579407,0.00039597,15]
[322596890,1713103844055,-3558.76,0.00039598,10]
[322596891,1713103844065,-62491.88716331,0.00039599,2]
[322596892,1713103844074,-1936.57721045,0.000398,30]
[322596893,1713103844083,-1000.0,0.00039871,2]
[322596894,1713103844092,-1000.0,0.00039873,2]
[322596895,1713103844102,-1000.0,0.00039893,2]
[322596896,1713103844111,-153.23871506,0.00039898,9]
[322596897,1713103844121,-3558.76,0.00039899,10]
[322596898,1713103844134,-6584.0,0.000399,120]
[322596899,1713103844143,-3435.53548284,0.000399,2]
[322596900,1713103844152,-1000.0,0.00039917,2]
[322596901,1713103844162,-1000.0,0.00039923,2]
[322596902,1713103844172,-1000.0,0.00039928,2]
[322596903,1713103844181,-1000.0,0.0003993,2]
[322596904,1713103844190,-324.6435668,0.00039934,2]
[322596905,1713103844199,-1000.0,0.0003994,2]
[322596906,1713103844210,-5105.90196013,0.00039945,7]
[322596907,1713103844220,-151.68,0.0003997,35]
[322596908,1713103844229,-171.86244832,0.0003997,2]
[322596909,1713103844238,-150.5,0.0003997,35]
[322596910,1713103844247,-295.24,0.0003997,35]
[322596911,1713103844256,-2081.0,0.0003997,35]
[322596912,1713103844266,-150.5,0.0003997,35]
[322596913,1713103844277,-150.5,0.0003998,35]
[322596914,1713103844286,-150.5,0.0003998,35]
[322596915,1713103844296,-150.5,0.0003998,35]
[322596916,1713103844305,-150.5,0.0003998,35]
[322596917,1713103844314,-2081.0,0.0003998,35]
[322596918,1713103844325,-150.5,0.0003999,35]
[322596919,1713103844334,-150.5,0.0003999,35]
[322596920,1713103844344,-150.5,0.0003999,35]
[322596921,1713103844353,-150.5,0.0003999,35]
[322596922,1713103844362,-150.5,0.0003999,35]
[322596923,1713103844373,-2081.0,0.0003999,35]
[322596924,1713103844382,-1000.0,0.00039997,2]